[Event "Late-Titled-Tuesday-Blitz-September-12-2023"]
[Site "Chess.com"]
[Date "2023.09.12"]
[Round "3"]
[White "FabianoCaruana"]
[Black "FredyMatsuura"]
[Result "1-0"]
[WhiteElo "3051"]
[BlackElo "2333"]
[TimeControl "180+1"]
[EndTime "14:25:55 PDT"]
[Termination "FabianoCaruana won by resignation"]

1. b3 {[%clk 0:03:00.9]} 1... e5 {[%clk 0:02:59.9]} 2. Bb2 {[%clk 0:03:01.8]}
2... Nc6 {[%clk 0:03:00.2]} 3. e3 {[%clk 0:02:58.2]} 3... Nge7 {[%clk
0:02:59.6]} 4. c4 {[%clk 0:02:57]} 4... d6 {[%clk 0:02:59.1]} 5. Nf3 {[%clk
0:02:55.9]} 5... g6 {[%clk 0:02:59.1]} 6. Be2 {[%clk 0:02:53]} 6... Bg7 {[%clk
0:02:59.1]} 7. O-O {[%clk 0:02:53.4]} 7... O-O {[%clk 0:02:58.9]} 8. Nc3 {[%clk
0:02:52.8]} 8... f5 {[%clk 0:02:54.7]} 9. d4 {[%clk 0:02:51.9]} 9... e4 {[%clk
0:02:55]} 10. Nd2 {[%clk 0:02:51.6]} 10... Bd7 {[%clk 0:02:43.6]} 11. d5 {[%clk
0:02:46.3]} 11... Ne5 {[%clk 0:02:42.7]} 12. b4 {[%clk 0:02:46.9]} 12... Kh8
{[%clk 0:02:35.8]} 13. Nb3 {[%clk 0:02:44.8]} 13... Qe8 {[%clk 0:02:16.3]} 14.
Nd4 {[%clk 0:02:41.2]} 14... Qf7 {[%clk 0:02:15]} 15. Rc1 {[%clk 0:02:37.5]}
15... a5 {[%clk 0:02:11.9]} 16. b5 {[%clk 0:02:35.4]} 16... b6 {[%clk
0:02:10.8]} 17. Nc6 {[%clk 0:02:29.3]} 17... h5 {[%clk 0:02:03.9]} 18. Na4
{[%clk 0:02:15.4]} 18... f4 {[%clk 0:01:54]} 19. exf4 {[%clk 0:01:54]} 19... Ng4
{[%clk 0:01:37.7]} 20. Bxg7+ {[%clk 0:01:40.1]} 20... Qxg7 {[%clk 0:01:35.9]}
21. Qd2 {[%clk 0:01:27.3]} 21... Rae8 {[%clk 0:01:32.5]} 22. Rce1 {[%clk
0:01:21.1]} 22... Nf5 {[%clk 0:01:30.3]} 23. Bxg4 {[%clk 0:01:19.2]} 23... hxg4
{[%clk 0:01:31.2]} 24. Nc3 {[%clk 0:01:18.9]} 24... g3 {[%clk 0:01:06.9]} 25.
fxg3 {[%clk 0:01:14.9]} 25... e3 {[%clk 0:01:05.3]} 26. Qd3 {[%clk 0:01:15.1]}
26... Qh6 {[%clk 0:00:41.3]} 27. Ne4 {[%clk 0:01:13.1]} 27... Bxc6 {[%clk
0:00:28.5]} 28. bxc6 {[%clk 0:01:12.2]} 28... Qh5 {[%clk 0:00:25.9]} 29. Ng5
{[%clk 0:01:06.8]} 29... e2 {[%clk 0:00:20.4]} 30. Rf3 {[%clk 0:01:06.2]} 30...
Qh6 {[%clk 0:00:10.9]} 31. Ne6 {[%clk 0:01:02.2]} 1-0

[Event "Late-Titled-Tuesday-Blitz-September-12-2023"]
[Site "Chess.com"]
[Date "2023.09.12"]
[Round "3"]
[White "Defend1r"]
[Black "Verony64"]
[Result "1-0"]
[WhiteElo "2524"]
[BlackElo "2261"]
[TimeControl "180+1"]
[EndTime "14:25:55 PDT"]
[Termination "Defend1r won by resignation"]

1. e4 {[%clk 0:03:00.3]} 1... e5 {[%clk 0:02:59.2]} 2. Nf3 {[%clk 0:03:00.2]}
2... d6 {[%clk 0:02:59.5]} 3. d4 {[%clk 0:02:59.4]} 3... Nd7 {[%clk 0:02:59.1]}
4. Bc4 {[%clk 0:02:59]} 4... c6 {[%clk 0:02:59]} 5. Bb3 {[%clk 0:02:58.8]} 5...
Be7 {[%clk 0:02:58.8]} 6. O-O {[%clk 0:02:55.5]} 6... Ngf6 {[%clk 0:02:58.8]} 7.
Re1 {[%clk 0:02:54.7]} 7... O-O {[%clk 0:02:57.9]} 8. d5 {[%clk 0:02:52.5]} 8...
c5 {[%clk 0:02:52.2]} 9. c4 {[%clk 0:02:52.4]} 9... g6 {[%clk 0:02:44.8]} 10.
Bc2 {[%clk 0:02:52]} 10... Re8 {[%clk 0:02:42.2]} 11. a3 {[%clk 0:02:50.5]}
11... Bf8 {[%clk 0:02:42.6]} 12. b4 {[%clk 0:02:50.2]} 12... b6 {[%clk
0:02:42.7]} 13. Nc3 {[%clk 0:02:49.1]} 13... a6 {[%clk 0:02:36.7]} 14. Be3
{[%clk 0:02:37.9]} 14... Bg7 {[%clk 0:02:32.5]} 15. Qd2 {[%clk 0:02:37.2]} 15...
Ng4 {[%clk 0:02:12.4]} 16. Bg5 {[%clk 0:02:34.2]} 16... f6 {[%clk 0:02:12.2]}
17. Bh4 {[%clk 0:02:34.4]} 17... g5 {[%clk 0:02:00.4]} 18. h3 {[%clk 0:02:34.8]}
18... gxh4 {[%clk 0:01:31.5]} 19. hxg4 {[%clk 0:02:34.9]} 19... Nf8 {[%clk
0:01:32.1]} 20. Nxh4 {[%clk 0:02:25.1]} 20... Bxg4 {[%clk 0:01:31.5]} 21. Nf5
{[%clk 0:02:25.3]} 21... Ng6 {[%clk 0:01:15.4]} 22. f3 {[%clk 0:02:23.9]} 22...
Bxf5 {[%clk 0:01:14.2]} 23. exf5 {[%clk 0:02:24.8]} 23... Nf4 {[%clk 0:00:56.3]}
24. g3 {[%clk 0:02:22.5]} 24... Nh3+ {[%clk 0:00:49.7]} 25. Kg2 {[%clk
0:02:22.1]} 25... Ng5 {[%clk 0:00:50.3]} 26. Rh1 {[%clk 0:02:18.6]} 26... Qe7
{[%clk 0:00:45.5]} 27. Rh5 {[%clk 0:02:17.5]} 27... Qf7 {[%clk 0:00:33.9]} 28.
Rah1 {[%clk 0:02:16.5]} 28... h6 {[%clk 0:00:31.5]} 29. f4 {[%clk 0:02:00.6]}
29... exf4 {[%clk 0:00:30.2]} 30. gxf4 {[%clk 0:02:01.5]} 30... Nh7 {[%clk
0:00:25.7]} 31. Kf3 {[%clk 0:02:01.7]} 31... Re7 {[%clk 0:00:24.3]} 32. Ne4
{[%clk 0:02:01.1]} 32... Rd8 {[%clk 0:00:20.2]} 33. Qg2 {[%clk 0:01:59.2]} 33...
Kh8 {[%clk 0:00:17.3]} 34. bxc5 {[%clk 0:01:43.3]} 34... bxc5 {[%clk 0:00:16]}
35. R5h2 {[%clk 0:01:34.7]} 35... Rb8 {[%clk 0:00:16.5]} 36. Rb1 {[%clk
0:01:29]} 36... Rxb1 {[%clk 0:00:15.5]} 37. Bxb1 {[%clk 0:01:29.9]} 37... Re8
{[%clk 0:00:15.5]} 38. Nxd6 {[%clk 0:01:25.7]} 38... Qe7 {[%clk 0:00:13.5]} 39.
Nxe8 {[%clk 0:01:25.1]} 39... Qxe8 {[%clk 0:00:14.4]} 40. Qc2 {[%clk 0:01:23.7]}
40... Qe1 {[%clk 0:00:12.8]} 41. Rg2 {[%clk 0:01:23.3]} 41... Qf1+ {[%clk
0:00:12.7]} 42. Kg3 {[%clk 0:01:23.2]} 42... Qxf4+ {[%clk 0:00:10.9]} 43. Kxf4
{[%clk 0:01:23.1]} 1-0

[Event "Late-Titled-Tuesday-Blitz-September-12-2023"]
[Site "Chess.com"]
[Date "2023.09.12"]
[Round "3"]
[White "falzehope0"]
[Black "trriinu"]
[Result "1-0"]
[WhiteElo "2397"]
[BlackElo "2210"]
[TimeControl "180+1"]
[EndTime "14:25:56 PDT"]
[Termination "falzehope0 won by checkmate"]

1. d4 {[%clk 0:03:00.9]} 1... g6 {[%clk 0:02:55.6]} 2. e3 {[%clk 0:03:01.2]}
2... Bg7 {[%clk 0:02:56.1]} 3. Bd3 {[%clk 0:03:00.9]} 3... Nf6 {[%clk
0:02:56.2]} 4. f4 {[%clk 0:03:01.2]} 4... O-O {[%clk 0:02:56.6]} 5. Nf3 {[%clk
0:03:01.6]} 5... d6 {[%clk 0:02:56.5]} 6. O-O {[%clk 0:03:01.7]} 6... Nbd7
{[%clk 0:02:40.1]} 7. f5 {[%clk 0:03:01.3]} 7... c5 {[%clk 0:02:38.9]} 8. Qe1
{[%clk 0:03:00.1]} 8... e5 {[%clk 0:02:24.9]} 9. fxe6 {[%clk 0:02:57.9]} 9...
fxe6 {[%clk 0:02:24.8]} 10. Ng5 {[%clk 0:02:58.8]} 10... Nb6 {[%clk 0:02:18.6]}
11. c3 {[%clk 0:02:54.1]} 11... c4 {[%clk 0:02:07.4]} 12. Bc2 {[%clk 0:02:53.9]}
12... e5 {[%clk 0:01:40.1]} 13. Nd2 {[%clk 0:02:47.6]} 13... Bd7 {[%clk
0:01:12.4]} 14. Qh4 {[%clk 0:02:40.7]} 14... Nh5 {[%clk 0:00:44.5]} 15. Rxf8+
{[%clk 0:02:20.6]} 15... Bxf8 {[%clk 0:00:45.4]} 16. g4 {[%clk 0:02:15.3]} 16...
Nf6 {[%clk 0:00:26.6]} 17. Nde4 {[%clk 0:02:12.9]} 17... h6 {[%clk 0:00:21.2]}
18. Nxf6+ {[%clk 0:01:50.8]} 18... Qxf6 {[%clk 0:00:22.1]} 19. e4 {[%clk
0:01:45.4]} 19... Be7 {[%clk 0:00:15]} 20. Qxh6 {[%clk 0:01:42.6]} 20... Qg7
{[%clk 0:00:14.4]} 21. Qh4 {[%clk 0:01:38.3]} 21... exd4 {[%clk 0:00:13.7]} 22.
Bd2 {[%clk 0:01:29.9]} 22... d3 {[%clk 0:00:13.1]} 23. Bd1 {[%clk 0:01:29.6]}
23... Rf8 {[%clk 0:00:12.3]} 24. b3 {[%clk 0:01:23.6]} 24... d5 {[%clk
0:00:11.1]} 25. exd5 {[%clk 0:01:15.1]} 25... Nxd5 {[%clk 0:00:11.1]} 26. bxc4
{[%clk 0:01:14.3]} 26... Nxc3 {[%clk 0:00:10.1]} 27. Bxc3 {[%clk 0:01:10.8]}
27... Bc5+ {[%clk 0:00:07.8]} 28. Kg2 {[%clk 0:01:03.4]} 28... Bc6+ {[%clk
0:00:05.6]} 29. Kh3 {[%clk 0:00:58.3]} 29... Qe7 {[%clk 0:00:02.7]} 30. Qh8#
{[%clk 0:00:54.4]} 1-0

[Event "Late-Titled-Tuesday-Blitz-September-12-2023"]
[Site "Chess.com"]
[Date "2023.09.12"]
[Round "3"]
[White "AndreiITrifan"]
[Black "salomez"]
[Result "1-0"]
[WhiteElo "2649"]
[BlackElo "2301"]
[TimeControl "180+1"]
[EndTime "14:25:58 PDT"]
[Termination "AndreiITrifan won on time"]

1. Nf3 {[%clk 0:03:00]} 1... Nf6 {[%clk 0:02:51.5]} 2. e3 {[%clk 0:02:59.4]}
2... g6 {[%clk 0:02:48.5]} 3. b3 {[%clk 0:02:58.9]} 3... Bg7 {[%clk 0:02:49.4]}
4. Bb2 {[%clk 0:02:59.2]} 4... d6 {[%clk 0:02:49.4]} 5. d4 {[%clk 0:02:59.7]}
5... Kf8 {[%clk 0:02:48.9]} 6. Be2 {[%clk 0:02:59.6]} 6... Kg8 {[%clk
0:02:48.9]} 7. c4 {[%clk 0:02:57]} 7... h6 {[%clk 0:02:48.9]} 8. Nc3 {[%clk
0:02:56.6]} 8... Kh7 {[%clk 0:02:49.5]} 9. Qc2 {[%clk 0:02:56.9]} 9... Re8
{[%clk 0:02:29.8]} 10. h4 {[%clk 0:02:54.6]} 10... Bg4 {[%clk 0:02:20.9]} 11.
O-O-O {[%clk 0:02:30.5]} 11... Nbd7 {[%clk 0:02:18.5]} 12. h5 {[%clk 0:02:15.1]}
12... Nf8 {[%clk 0:01:31.3]} 13. hxg6+ {[%clk 0:02:03.7]} 13... fxg6 {[%clk
0:01:31]} 14. Rh4 {[%clk 0:01:50.1]} 14... Qc8 {[%clk 0:01:26.9]} 15. Nd5 {[%clk
0:01:36.1]} 15... Nxd5 {[%clk 0:01:04]} 16. Ng5+ {[%clk 0:01:30.2]} 16... Kg8
{[%clk 0:01:03.6]} 17. Bxg4 {[%clk 0:01:30.4]} 17... Nb4 {[%clk 0:00:41.2]} 18.
Bxc8 {[%clk 0:01:12.9]} 18... Nxc2 {[%clk 0:00:40.6]} 19. Be6+ {[%clk
0:01:12.9]} 19... Kh8 {[%clk 0:00:24.7]} 20. Kxc2 {[%clk 0:00:58.3]} 20... Bf6
{[%clk 0:00:14.8]} 21. d5 {[%clk 0:00:53.2]} 21... Kg7 {[%clk 0:00:01.5]} 22.
Nf3 {[%clk 0:00:46.4]} 1-0

[Event "Late-Titled-Tuesday-Blitz-September-12-2023"]
[Site "Chess.com"]
[Date "2023.09.12"]
[Round "3"]
[White "atigerman"]
[Black "infinitegiantkiller"]
[Result "1-0"]
[WhiteElo "2705"]
[BlackElo "2469"]
[TimeControl "180+1"]
[EndTime "14:26:00 PDT"]
[Termination "atigerman won by resignation"]

1. e4 {[%clk 0:03:00.9]} 1... c5 {[%clk 0:02:58.3]} 2. Nc3 {[%clk 0:02:55]} 2...
Nc6 {[%clk 0:02:59.2]} 3. Bb5 {[%clk 0:02:49.7]} 3... g6 {[%clk 0:02:57.9]} 4.
Nf3 {[%clk 0:02:49.2]} 4... Bg7 {[%clk 0:02:57.6]} 5. O-O {[%clk 0:02:49.8]}
5... d6 {[%clk 0:02:57.9]} 6. h3 {[%clk 0:02:49.5]} 6... Nf6 {[%clk 0:02:57.9]}
7. Re1 {[%clk 0:02:49.8]} 7... O-O {[%clk 0:02:57.9]} 8. d3 {[%clk 0:02:40.7]}
8... e5 {[%clk 0:02:57.8]} 9. Bg5 {[%clk 0:02:37.8]} 9... Be6 {[%clk 0:02:56.5]}
10. Bxc6 {[%clk 0:02:29.1]} 10... bxc6 {[%clk 0:02:56.2]} 11. Qd2 {[%clk
0:02:29.9]} 11... Rb8 {[%clk 0:02:53.8]} 12. b3 {[%clk 0:02:29]} 12... Qc7
{[%clk 0:02:45.8]} 13. Bh6 {[%clk 0:02:26.4]} 13... Nh5 {[%clk 0:02:43.1]} 14.
Bxg7 {[%clk 0:02:24.7]} 14... Kxg7 {[%clk 0:02:44]} 15. Ne2 {[%clk 0:02:25.3]}
15... f5 {[%clk 0:02:35.5]} 16. Ng5 {[%clk 0:02:02.9]} 16... Qe7 {[%clk
0:02:29.1]} 17. exf5 {[%clk 0:01:59.1]} 17... gxf5 {[%clk 0:02:03.7]} 18. f4
{[%clk 0:01:51.6]} 18... h6 {[%clk 0:01:50.4]} 19. Nxe6+ {[%clk 0:01:49.6]}
19... Qxe6 {[%clk 0:01:51.3]} 20. fxe5 {[%clk 0:01:49.8]} 20... Qxe5 {[%clk
0:01:52.2]} 21. d4 {[%clk 0:01:42.3]} 21... cxd4 {[%clk 0:01:51.7]} 22. Nxd4
{[%clk 0:01:42.1]} 22... Qc5 {[%clk 0:01:51.3]} 23. Kh2 {[%clk 0:01:11.9]} 23...
Rbe8 {[%clk 0:01:49.3]} 24. Ne6+ {[%clk 0:01:09.6]} 24... Rxe6 {[%clk
0:01:49.2]} 25. Rxe6 {[%clk 0:01:10.5]} 25... Rf6 {[%clk 0:01:47]} 26. Rae1
{[%clk 0:01:08.3]} 26... Rg6 {[%clk 0:01:40.2]} 27. Re7+ {[%clk 0:01:04.6]}
27... Kf8 {[%clk 0:01:37.4]} 28. Re8+ {[%clk 0:01:04.9]} 28... Kf7 {[%clk
0:01:36.5]} 29. R1e7+ {[%clk 0:01:05.8]} 29... Kf6 {[%clk 0:01:37.2]} 30. b4
{[%clk 0:01:00]} 30... Qd5 {[%clk 0:01:17.4]} 31. Qc3+ {[%clk 0:00:53]} 31...
Kg5 {[%clk 0:01:16.4]} 32. g3 {[%clk 0:00:27.9]} 32... Qf3 {[%clk 0:00:47.1]}
33. Qxf3 {[%clk 0:00:26.2]} 1-0

[Event "Late-Titled-Tuesday-Blitz-September-12-2023"]
[Site "Chess.com"]
[Date "2023.09.12"]
[Round "3"]
[White "APOKALIPSA13"]
[Black "CrushingKings"]
[Result "0-1"]
[WhiteElo "2262"]
[BlackElo "2523"]
[TimeControl "180+1"]
[EndTime "14:26:00 PDT"]
[Termination "CrushingKings won by checkmate"]

1. e4 {[%clk 0:02:58.2]} 1... g6 {[%clk 0:03:00.9]} 2. h4 {[%clk 0:02:56.2]}
2... Bg7 {[%clk 0:03:01.8]} 3. h5 {[%clk 0:02:56.5]} 3... c5 {[%clk 0:03:01.5]}
4. c3 {[%clk 0:02:54.8]} 4... Nc6 {[%clk 0:03:01.3]} 5. Bc4 {[%clk 0:02:52]}
5... e6 {[%clk 0:03:00.8]} 6. Qe2 {[%clk 0:02:37.5]} 6... Nge7 {[%clk
0:02:58.8]} 7. h6 {[%clk 0:02:33.7]} 7... Bf6 {[%clk 0:02:58.5]} 8. f4 {[%clk
0:02:32.2]} 8... d5 {[%clk 0:02:58.1]} 9. exd5 {[%clk 0:02:05.9]} 9... exd5
{[%clk 0:02:57.1]} 10. Bb5 {[%clk 0:02:02.7]} 10... O-O {[%clk 0:02:54.4]} 11.
Nf3 {[%clk 0:01:58.5]} 11... Nf5 {[%clk 0:02:28.8]} 12. Bxc6 {[%clk 0:01:55.4]}
12... Ng3 {[%clk 0:02:12.8]} 13. Qd3 {[%clk 0:01:39.6]} 13... bxc6 {[%clk
0:02:10.4]} 14. Rg1 {[%clk 0:01:25.2]} 14... Re8+ {[%clk 0:01:19.1]} 15. Kd1
{[%clk 0:01:19.6]} 15... c4 {[%clk 0:01:14.8]} 16. Qc2 {[%clk 0:01:15.9]} 16...
Bf5 {[%clk 0:01:15.4]} 17. Qa4 {[%clk 0:01:14.8]} 17... Ne2 {[%clk 0:00:57.7]}
18. Re1 {[%clk 0:01:07.6]} 18... Nxf4 {[%clk 0:00:57.8]} 19. Qxc6 {[%clk
0:01:00]} 19... Be4 {[%clk 0:00:47.6]} 20. d4 {[%clk 0:00:35.6]} 20... Nxg2
{[%clk 0:00:45]} 21. Ne5 {[%clk 0:00:31]} 21... Nxe1 {[%clk 0:00:30.4]} 22. Kxe1
{[%clk 0:00:28.6]} 22... Bxe5 {[%clk 0:00:29.6]} 23. dxe5 {[%clk 0:00:27]} 23...
Qh4+ {[%clk 0:00:30.2]} 24. Kd1 {[%clk 0:00:24.5]} 24... Bf3+ {[%clk 0:00:28]}
25. Kc2 {[%clk 0:00:21.6]} 25... Qe4+ {[%clk 0:00:28]} 26. Kd2 {[%clk
0:00:21.2]} 26... Qe2# {[%clk 0:00:28.8]} 0-1

[Event "Late-Titled-Tuesday-Blitz-September-12-2023"]
[Site "Chess.com"]
[Date "2023.09.12"]
[Round "3"]
[White "Harald_Schmidt"]
[Black "schack_vit"]
[Result "1-0"]
[WhiteElo "2277"]
[BlackElo "2456"]
[TimeControl "180+1"]
[EndTime "14:26:02 PDT"]
[Termination "Harald_Schmidt won by resignation"]

1. e4 {[%clk 0:03:00]} 1... c5 {[%clk 0:02:56.9]} 2. Nf3 {[%clk 0:02:59.4]} 2...
d6 {[%clk 0:02:57.5]} 3. c3 {[%clk 0:02:59.3]} 3... Nf6 {[%clk 0:02:56.2]} 4. h3
{[%clk 0:02:59.6]} 4... e5 {[%clk 0:02:52.6]} 5. d4 {[%clk 0:02:54.3]} 5... exd4
{[%clk 0:02:50.9]} 6. cxd4 {[%clk 0:02:53.7]} 6... Nxe4 {[%clk 0:02:47.4]} 7.
Bd3 {[%clk 0:02:49.9]} 7... Nf6 {[%clk 0:02:43.4]} 8. O-O {[%clk 0:02:48.8]}
8... Be7 {[%clk 0:02:43.9]} 9. Nc3 {[%clk 0:02:45.8]} 9... O-O {[%clk
0:02:38.5]} 10. Re1 {[%clk 0:02:44.5]} 10... cxd4 {[%clk 0:02:20.8]} 11. Nxd4
{[%clk 0:02:41.6]} 11... Nc6 {[%clk 0:02:21.1]} 12. Nf5 {[%clk 0:02:40.4]} 12...
Bxf5 {[%clk 0:02:18.2]} 13. Bxf5 {[%clk 0:02:39.7]} 13... d5 {[%clk 0:02:18.5]}
14. Bg5 {[%clk 0:02:33.9]} 14... d4 {[%clk 0:02:18.4]} 15. Ne2 {[%clk
0:02:33.1]} 15... h6 {[%clk 0:02:12.1]} 16. Bf4 {[%clk 0:02:24.9]} 16... Bb4
{[%clk 0:02:10.1]} 17. Rf1 {[%clk 0:02:20.9]} 17... Qd5 {[%clk 0:02:10.2]} 18.
Bd3 {[%clk 0:02:18.3]} 18... Rad8 {[%clk 0:02:05.9]} 19. a3 {[%clk 0:02:17.5]}
19... Bd6 {[%clk 0:02:03]} 20. Bd2 {[%clk 0:02:16.9]} 20... Bb8 {[%clk
0:02:02.1]} 21. Nf4 {[%clk 0:02:12.5]} 21... Qd6 {[%clk 0:01:57.6]} 22. g3
{[%clk 0:02:04.7]} 22... Rfe8 {[%clk 0:01:53.2]} 23. Qb3 {[%clk 0:02:02.9]}
23... Ne5 {[%clk 0:01:50.2]} 24. Qxb7 {[%clk 0:02:01.1]} 24... Rd7 {[%clk
0:01:38.8]} 25. Qg2 {[%clk 0:01:52.7]} 25... Nxd3 {[%clk 0:01:33]} 26. Nxd3
{[%clk 0:01:51.9]} 26... Rde7 {[%clk 0:01:06.5]} 27. Bb4 {[%clk 0:01:50]} 27...
Qa6 {[%clk 0:01:03.8]} 28. Bxe7 {[%clk 0:01:49.1]} 28... Rxe7 {[%clk 0:01:04.7]}
29. Rad1 {[%clk 0:01:46.1]} 29... Ne4 {[%clk 0:00:58.1]} 30. Qf3 {[%clk
0:01:43.7]} 30... Ng5 {[%clk 0:00:56.2]} 31. Qg2 {[%clk 0:01:39.7]} 31... Qc8
{[%clk 0:00:53.8]} 32. h4 {[%clk 0:01:38]} 32... Ne6 {[%clk 0:00:45.2]} 33. Rc1
{[%clk 0:01:34.6]} 33... Qa6 {[%clk 0:00:43.1]} 34. Rfd1 {[%clk 0:01:30.8]}
34... Kh7 {[%clk 0:00:39.3]} 35. Qe4+ {[%clk 0:01:29.1]} 35... g6 {[%clk
0:00:39.2]} 36. Nc5 {[%clk 0:01:21]} 36... Qd6 {[%clk 0:00:37.9]} 37. Nxe6
{[%clk 0:01:20.1]} 37... Rxe6 {[%clk 0:00:38.8]} 38. Qb7 {[%clk 0:01:17]} 38...
Rf6 {[%clk 0:00:34.6]} 39. Rc8 {[%clk 0:01:10.2]} 39... d3 {[%clk 0:00:20.3]}
40. Qxb8 {[%clk 0:01:07.5]} 40... Qd4 {[%clk 0:00:20.4]} 41. Rh8+ {[%clk
0:01:05.6]} 1-0

[Event "Late-Titled-Tuesday-Blitz-September-12-2023"]
[Site "Chess.com"]
[Date "2023.09.12"]
[Round "3"]
[White "queen_iryna"]
[Black "antispeciesism"]
[Result "1-0"]
[WhiteElo "2352"]
[BlackElo "2053"]
[TimeControl "180+1"]
[EndTime "14:26:05 PDT"]
[Termination "queen_iryna won on time"]

1. e4 {[%clk 0:03:00.9]} 1... c5 {[%clk 0:02:58.5]} 2. Nf3 {[%clk 0:03:00]} 2...
e6 {[%clk 0:02:57.8]} 3. c4 {[%clk 0:02:54.6]} 3... g6 {[%clk 0:02:51.9]} 4. Nc3
{[%clk 0:02:50.3]} 4... Bg7 {[%clk 0:02:51.2]} 5. d4 {[%clk 0:02:49.9]} 5...
cxd4 {[%clk 0:02:50.1]} 6. Nxd4 {[%clk 0:02:50.8]} 6... a6 {[%clk 0:02:44.2]} 7.
Be3 {[%clk 0:02:46.1]} 7... Nc6 {[%clk 0:02:39.9]} 8. Be2 {[%clk 0:02:42]} 8...
Nf6 {[%clk 0:02:31.4]} 9. O-O {[%clk 0:02:41.2]} 9... O-O {[%clk 0:02:29.7]} 10.
Qd2 {[%clk 0:02:37.2]} 10... Qc7 {[%clk 0:02:20.6]} 11. Rfc1 {[%clk 0:02:36.2]}
11... Ne5 {[%clk 0:02:12.6]} 12. f3 {[%clk 0:02:34.2]} 12... d6 {[%clk
0:02:08.5]} 13. a4 {[%clk 0:02:21.3]} 13... b6 {[%clk 0:02:02.8]} 14. a5 {[%clk
0:02:20.6]} 14... bxa5 {[%clk 0:01:45.2]} 15. Nb3 {[%clk 0:02:20.4]} 15... Nxc4
{[%clk 0:01:27.6]} 16. Bxc4 {[%clk 0:02:17.2]} 16... Qxc4 {[%clk 0:01:26.5]} 17.
Nxa5 {[%clk 0:02:17.2]} 17... Qb4 {[%clk 0:01:24.8]} 18. Nc6 {[%clk 0:02:10.6]}
18... Qb7 {[%clk 0:01:23.1]} 19. Na4 {[%clk 0:02:06.5]} 19... Bd7 {[%clk
0:01:10.7]} 20. Qxd6 {[%clk 0:01:59.8]} 20... Bxc6 {[%clk 0:00:56.9]} 21. Qxc6
{[%clk 0:01:56.3]} 21... Rab8 {[%clk 0:00:43.6]} 22. Nb6 {[%clk 0:01:47.3]}
22... Rfd8 {[%clk 0:00:17.9]} 23. Qxb7 {[%clk 0:01:44.4]} 23... Rxb7 {[%clk
0:00:17.9]} 24. Rxa6 {[%clk 0:01:44.9]} 24... Nd7 {[%clk 0:00:15.9]} 25. Nxd7
{[%clk 0:01:39.7]} 25... Rbxd7 {[%clk 0:00:16.8]} 26. b4 {[%clk 0:01:37.2]}
26... h5 {[%clk 0:00:13.7]} 27. b5 {[%clk 0:01:35.9]} 27... Rb7 {[%clk
0:00:13.6]} 28. b6 {[%clk 0:01:34.6]} 28... Rd3 {[%clk 0:00:13.8]} 29. Bf2
{[%clk 0:01:30.8]} 29... Bd4 {[%clk 0:00:11.5]} 30. Bxd4 {[%clk 0:01:20.6]}
30... Rxd4 {[%clk 0:00:11.8]} 31. Rc7 {[%clk 0:01:21]} 31... Rb8 {[%clk
0:00:10.4]} 32. b7 {[%clk 0:01:19.6]} 32... Rdd8 {[%clk 0:00:09.4]} 33. Rac6
{[%clk 0:01:14]} 33... Kf8 {[%clk 0:00:09.5]} 34. Rc8 {[%clk 0:01:11.3]} 34...
Ke8 {[%clk 0:00:09.9]} 35. R6c7 {[%clk 0:01:03.5]} 1-0

[Event "Late-Titled-Tuesday-Blitz-September-12-2023"]
[Site "Chess.com"]
[Date "2023.09.12"]
[Round "3"]
[White "GAO"]
[Black "TERMINATOR_PC"]
[Result "1/2-1/2"]
[WhiteElo "2340"]
[BlackElo "2534"]
[TimeControl "180+1"]
[EndTime "14:26:06 PDT"]
[Termination "Game drawn by agreement"]

1. Nf3 {[%clk 0:02:57.7]} 1... Nf6 {[%clk 0:02:59.5]} 2. d4 {[%clk 0:02:56.7]}
2... e6 {[%clk 0:02:59.6]} 3. c4 {[%clk 0:02:55.6]} 3... Bb4+ {[%clk 0:02:59.7]}
4. Bd2 {[%clk 0:02:54.9]} 4... a5 {[%clk 0:03:00.4]} 5. g3 {[%clk 0:02:54.8]}
5... d6 {[%clk 0:03:00]} 6. Bg2 {[%clk 0:02:54.5]} 6... Nbd7 {[%clk 0:03:00.5]}
7. O-O {[%clk 0:02:54]} 7... e5 {[%clk 0:03:01]} 8. e3 {[%clk 0:02:45]} 8...
Bxd2 {[%clk 0:02:58.7]} 9. Nfxd2 {[%clk 0:02:44.2]} 9... O-O {[%clk 0:02:57.5]}
10. Nc3 {[%clk 0:02:43.9]} 10... exd4 {[%clk 0:02:49.3]} 11. exd4 {[%clk
0:02:43.6]} 11... c6 {[%clk 0:02:50]} 12. Nde4 {[%clk 0:02:43.3]} 12... Nxe4
{[%clk 0:02:49.3]} 13. Nxe4 {[%clk 0:02:43.2]} 13... Nf6 {[%clk 0:02:50.2]} 14.
Re1 {[%clk 0:02:40.7]} 14... Bf5 {[%clk 0:02:48.6]} 15. Nxf6+ {[%clk 0:02:36.8]}
15... Qxf6 {[%clk 0:02:49.5]} 16. Qd2 {[%clk 0:02:34.4]} 16... Bg6 {[%clk
0:02:45.7]} 17. Re2 {[%clk 0:02:32.6]} 17... Rfe8 {[%clk 0:02:45.4]} 18. Rae1
{[%clk 0:02:30.7]} 18... Rxe2 {[%clk 0:02:44.3]} 19. Rxe2 {[%clk 0:02:31.6]}
19... h6 {[%clk 0:02:38.8]} 20. h3 {[%clk 0:02:17.1]} 20... Kh7 {[%clk
0:02:38.4]} 21. Qf4 {[%clk 0:02:08.3]} 21... Qxf4 {[%clk 0:02:29.1]} 22. gxf4
{[%clk 0:02:08.2]} 22... Bd3 {[%clk 0:02:29.4]} 23. Be4+ {[%clk 0:01:59]} 23...
Bxe4 {[%clk 0:02:21]} 24. Rxe4 {[%clk 0:01:59.9]} 24... Kg6 {[%clk 0:02:19.6]}
25. Re7 {[%clk 0:01:59]} 25... b5 {[%clk 0:02:18.8]} 26. Rd7 {[%clk 0:01:56.7]}
26... bxc4 {[%clk 0:02:16.8]} 27. Rxd6+ {[%clk 0:01:55.6]} 27... Kf5 {[%clk
0:02:16.6]} 28. Rxc6 {[%clk 0:01:39.5]} 28... Rb8 {[%clk 0:02:16.5]} 29. Rxc4
{[%clk 0:01:01.3]} 29... Rxb2 {[%clk 0:02:15.3]} 30. Rc5+ {[%clk 0:00:53.8]}
30... Kxf4 {[%clk 0:02:15.1]} 31. Rxa5 {[%clk 0:00:54.5]} 31... Rd2 {[%clk
0:02:14.1]} 32. Ra7 {[%clk 0:00:47.6]} 32... f5 {[%clk 0:02:09.6]} 33. Kg2
{[%clk 0:00:25.2]} 33... g5 {[%clk 0:01:58.4]} 34. Ra4 {[%clk 0:00:25.3]} 34...
Ke4 {[%clk 0:01:54.4]} 35. a3 {[%clk 0:00:20.6]} 35... h5 {[%clk 0:01:50.4]} 36.
Ra5 {[%clk 0:00:16.2]} 36... Rxd4 {[%clk 0:01:48.2]} 37. Ra8 {[%clk 0:00:15.1]}
37... Kf4 {[%clk 0:01:45.8]} 38. a4 {[%clk 0:00:14.5]} 38... Rd2 {[%clk
0:01:45.1]} 39. a5 {[%clk 0:00:13.9]} 39... Ra2 {[%clk 0:01:45.3]} 40. a6 {[%clk
0:00:14.3]} 40... g4 {[%clk 0:01:45.7]} 41. hxg4 {[%clk 0:00:13.7]} 41... hxg4
{[%clk 0:01:45.9]} 42. a7 {[%clk 0:00:14]} 42... g3 {[%clk 0:01:45]} 43. Rg8
{[%clk 0:00:06.6]} 43... Rxa7 {[%clk 0:01:42.1]} 44. Rxg3 {[%clk 0:00:05.3]}
44... Ke4 {[%clk 0:01:41.2]} 45. Rb3 {[%clk 0:00:05.4]} 45... Rg7+ {[%clk
0:01:40.4]} 46. Kf1 {[%clk 0:00:05.4]} 46... Kf4 {[%clk 0:01:41]} 47. Ke2 {[%clk
0:00:05.5]} 47... Rd7 {[%clk 0:01:36.1]} 48. Rb4+ {[%clk 0:00:05.7]} 48... Ke5
{[%clk 0:01:36]} 49. Rb5+ {[%clk 0:00:06]} 49... Kf6 {[%clk 0:01:36.5]} 50. Rb6+
{[%clk 0:00:06.5]} 50... Kg5 {[%clk 0:01:36.5]} 51. Rb4 {[%clk 0:00:07.1]} 51...
Re7+ {[%clk 0:01:36.9]} 52. Kf1 {[%clk 0:00:07.1]} 1/2-1/2